fUST/lending_fUST_20250722
["ID","MTS","AMOUNT","RATE_DAILY","PERIOD"]
[373908295,1753149045983,-460.69065561,0.00017656,2]
[373908297,1753149045994,-460.0,0.00017656,2]
[373908299,1753149046004,-460.0,0.00017656,2]
[373908301,1753149046014,-460.0,0.00017656,2]
[373908303,1753149046024,-461.39514528,0.00017656,2]
[373908306,1753149046034,-460.0,0.00017656,2]
[373908308,1753149046043,-460.0,0.00017656,2]
[373908310,1753149046052,-461.38793345,0.00017656,2]
[373908311,1753149046060,-460.0,0.00017656,2]
[373908313,1753149046070,-461.34331367,0.00017656,2]
[373908315,1753149046079,-460.0,0.00017656,2]
[373908317,1753149046088,-460.0,0.00017656,2]
[373908319,1753149046098,-460.0,0.00017656,2]
[373908321,1753149046107,-460.88888629,0.00017656,2]
[373908323,1753149046117,-460.0,0.00017656,2]
[373908325,1753149046125,-460.0,0.00017656,2]
[373908327,1753149046135,-462.58451632,0.00017656,2]
[373908329,1753149046145,-460.7981892,0.00017656,2]
[373908331,1753149046154,-781.07,0.00017656,2]
[373908333,1753149046163,-781.07,0.00017656,2]
[373908335,1753149046172,-781.07,0.00017656,2]
[373908337,1753149046181,-781.07,0.00017656,2]
[373908339,1753149046190,-781.07,0.00017656,2]
[373908341,1753149046201,-781.07,0.00017672,2]
[373908343,1753149046211,-505.80901755,0.00017673,2]
[373908345,1753149046220,-502.05907152,0.00017673,2]
[373908347,1753149046229,-500.0,0.00017673,2]
[373908349,1753149046239,-500.0,0.00017673,2]
[373908351,1753149046248,-500.0,0.00017673,2]
[373908353,1753149046257,-500.0,0.00017673,2]
[373908355,1753149046267,-500.0,0.00017673,2]
[373908357,1753149046276,-159.5878529,0.00017673,2]
[373908359,1753149046286,-500.0,0.00017673,2]
[373908361,1753149046295,-486.69610021,0.00017673,2]
[373908363,1753149046304,-500.0,0.00017673,2]
[373908365,1753149046314,-504.81165985,0.00017673,2]
[373908367,1753149046323,-289.0,0.00017677,2]
[373908369,1753149046331,-461.39124406,0.00017744,2]
[373908371,1753149046341,-460.0,0.00017745,2]
[373908373,1753149046350,-463.88601594,0.00017745,2]
[373908375,1753149046359,-460.0,0.00017745,2]
[373908377,1753149046369,-581.79,0.00017745,2]
[373908379,1753149046378,-265.21065748,0.00017745,2]
[373908381,1753149046388,-707.44,0.00017745,2]
[373908383,1753149046397,-465.23656347,0.00017745,2]
[373908385,1753149046406,-1941.19019774,0.00017745,2]
[373908387,1753149046423,-507.81705216,0.00017745,2]
[373908390,1753149046434,-25.1227501,0.00017745,2]
[373908392,1753149046443,-460.0,0.00017745,2]
[373908393,1753149046451,-494.79255596,0.00017745,2]
[373908395,1753149046461,-461.52358895,0.00017746,2]
[373908397,1753149046470,-460.0,0.00017746,2]
[373908399,1753149046479,-153.65211575,0.00017746,2]
[373908401,1753149046488,-460.0,0.00017746,2]
[373908402,1753149046499,-460.0,0.00017746,2]
[373908403,1753149046508,-464.30066777,0.00017746,2]
[373908404,1753149046518,-460.0,0.00017746,2]
[373908405,1753149046528,-357.46249381,0.00017746,2]
[373908406,1753149046539,-104.28717752,0.00017746,2]
[373908407,1753149046549,-460.0,0.00017746,2]
[373908408,1753149046558,-460.0,0.00017746,2]
[373908410,1753149046568,-460.0,0.00017746,2]
[373908412,1753149046578,-463.40230609,0.00017746,2]
[373908414,1753149046588,-463.07384459,0.00017746,2]
[373908416,1753149046602,-463.16816172,0.00017746,2]
[373908418,1753149046611,-461.15607885,0.00017746,2]
[373908420,1753149046621,-463.53153828,0.00017746,2]
[373908422,1753149046630,-462.71660802,0.00017746,2]
[373908424,1753149046641,-462.20244076,0.00017746,2]
[373908426,1753149046650,-462.14811559,0.00017746,2]
[373908428,1753149046660,-469.66284539,0.00017746,2]
[373908430,1753149046672,-461.48563277,0.00017746,2]
[373908432,1753149046682,-465.63704121,0.00017746,2]
[373908434,1753149046691,-463.4218288,0.00017746,2]
[373908436,1753149046701,-460.0,0.00017746,2]
[373908438,1753149046710,-460.55888557,0.00017746,2]
[373908440,1753149046720,-465.01766266,0.00017746,2]
[373908442,1753149046730,-462.91556037,0.00017746,2]
[373908444,1753149046740,-463.88118265,0.00017746,2]
[373908446,1753149046749,-461.73108259,0.00017746,2]
[373908448,1753149046758,-462.78960582,0.00017746,2]
[373908450,1753149046768,-463.05444191,0.00017746,2]
[373908452,1753149046777,-460.9993787,0.00017746,2]
[373908454,1753149046787,-460.0,0.00017746,2]
[373908456,1753149046796,-460.0,0.00017746,2]
[373908459,1753149046806,-364.25416316,0.00017746,2]
[373908461,1753149046816,-463.45095403,0.00017746,2]
[373908463,1753149046826,-462.06839175,0.00017746,2]
[373908465,1753149046835,-462.11181268,0.00017746,2]
[373908467,1753149046845,-462.74712902,0.00017746,2]
[373908469,1753149046854,-157.68045638,0.00017746,2]
[373908471,1753149046864,-462.68012478,0.00017746,2]
[373908473,1753149046874,-461.78290763,0.00017746,2]
[373908475,1753149046883,-462.07931835,0.00017746,2]
[373908477,1753149046893,-460.0,0.00017746,2]
[373908479,1753149046902,-460.0,0.00017746,2]
[373908481,1753149046912,-462.53121866,0.00017746,2]
[373908483,1753149046921,-460.0,0.00017746,2]
[373908485,1753149046931,-461.67595137,0.00017746,2]
[373908487,1753149046941,-462.465077,0.00017746,2]
[373908489,1753149046950,-463.82959883,0.00017746,2]
[373908491,1753149046960,-8240.57,0.00017746,2]
[373908493,1753149046969,-460.0,0.00017746,2]
[373908496,1753149046979,-463.97277237,0.00017746,2]
[373908498,1753149046988,-460.0,0.00017746,2]
[373908500,1753149046999,-460.0,0.00017746,2]
[373908502,1753149047009,-460.0,0.00017746,2]
[373908504,1753149047019,-460.0,0.00017746,2]
[373908506,1753149047028,-500.0,0.00017746,2]
[373908508,1753149047038,-781.07,0.00017752,2]
[373908510,1753149047048,-781.07,0.00017752,2]
[373908512,1753149047057,-781.07,0.00017755,2]
[373908514,1753149047067,-781.07,0.00017755,2]
[373908516,1753149047076,-781.07,0.00017755,2]
[373908518,1753149047085,-460.0,0.00017756,2]
[373908520,1753149047095,-460.0,0.00017756,2]
[373908522,1753149047104,-463.52297301,0.00017756,2]
[373908524,1753149047113,-460.0,0.00017756,2]
[373908526,1753149047123,-7163.45,0.00017756,2]
[373908528,1753149047132,-2003.16,0.00017756,2]
[373908530,1753149047142,-460.0,0.00017756,2]
[373908532,1753149047151,-2510.42,0.00017756,2]
[373908535,1753149047161,-3550.16,0.00017756,2]
[373908537,1753149047171,-460.0,0.00017756,2]
[373908539,1753149047181,-824.25,0.00017756,2]
[373908541,1753149047191,-460.0,0.00017756,2]
[373908543,1753149047200,-2734.73,0.00017756,2]
[373908545,1753149047209,-781.07,0.00017756,2]
[373908547,1753149047219,-1787.0,0.00017756,2]
[373908549,1753149047228,-2443.91,0.00017756,2]
[373908551,1753149047237,-460.0,0.00017756,2]
[373908553,1753149047247,-460.47377801,0.00017756,2]
[373908555,1753149047256,-460.0,0.00017756,2]
[373908557,1753149047265,-642.64119502,0.00017787,2]
[373908559,1753149047275,-781.07,0.00017797,2]
[373908561,1753149047284,-462.10492443,0.00017819,2]
[373908563,1753149047294,-465.2292683,0.00017819,2]
[373908565,1753149047304,-460.0,0.00017819,2]
[373908567,1753149047315,-465.61305856,0.00017819,2]
[373908569,1753149047325,-390.79879347,0.00017819,2]
[373908571,1753149047335,-463.51161287,0.00017819,2]
[373908574,1753149047344,-460.0,0.00017819,2]
[373908576,1753149047354,-460.0,0.00017819,2]
[373908578,1753149047363,-463.89805704,0.00017819,2]
[373908580,1753149047372,-460.0,0.00017819,2]
[373908582,1753149047382,-402.9328161,0.00017819,2]
[373908584,1753149047392,-460.23537895,0.00017819,2]
[373908586,1753149047402,-4293.78,0.00017819,2]
[373908588,1753149047414,-1142.08,0.00017819,2]
[373908590,1753149047423,-737.82,0.00017819,2]
[373908592,1753149047433,-460.0,0.00017819,2]
[373908594,1753149047442,-460.0,0.00017819,2]
[373908596,1753149047453,-3243.66,0.00017819,2]
[373908598,1753149047462,-460.0,0.00017819,2]
[373908600,1753149047472,-460.0,0.00017819,2]
[373908602,1753149047481,-711.26,0.00017819,2]
[373908604,1753149047491,-267.44103623,0.00017819,2]
[373908607,1753149047510,-192.55896377,0.00017819,2]
[373908610,1753149047520,-1172.73102205,0.00017819,2]
[373908674,1753149048131,-460.0,0.00017545,2]
[373908676,1753149048141,-460.0,0.00017555,2]
[373908678,1753149048151,-667.87897795,0.00017819,2]
[373908681,1753149048162,-619.83,0.00017819,2]
[373908683,1753149048173,-892.29102205,0.00017819,2]
[373908703,1753149048360,-1440.90814618,0.00017445,2]
[373908705,1753149048371,-460.0,0.00017471,2]
[373908707,1753149048381,-184.66,0.00017736,3]
[373908710,1753149048393,-335.08885248,0.00017752,2]
[373908712,1753149048403,-24.22897795,0.00017819,2]
[373908714,1753149048413,-1169.31402338,0.00017819,2]
[373908716,1753149048426,-2753.63597662,0.00017819,2]
[373908718,1753149048436,-460.0,0.00017819,2]
[373908720,1753149048446,-460.0,0.00017819,2]
[373908722,1753149048456,-460.0,0.00017828,2]
[373908724,1753149048466,-539.96268388,0.00017828,2]
[373908727,1753149048477,-462.36033899,0.00017828,2]
[373908742,1753149048622,-465.66943416,0.00017828,2]
[373908744,1753149048632,-281.43033694,0.00017828,2]
[373908746,1753149048643,-462.31238432,0.00017828,2]
[373908748,1753149048652,-462.94601988,0.00017828,2]
[373908750,1753149048661,-461.97807018,0.00017828,2]
[373908752,1753149048672,-461.09533867,0.00017828,2]
[373908754,1753149048683,-460.0,0.00017828,2]
[373908756,1753149048692,-464.23975184,0.00017828,2]
[373908758,1753149048702,-462.82942273,0.00017828,2]
[373908760,1753149048712,-460.0,0.00017828,2]
[373908763,1753149048722,-460.0,0.00017828,2]
[373908764,1753149048731,-462.60221415,0.00017828,2]
[373908766,1753149048740,-462.88373016,0.00017828,2]
[373908768,1753149048750,-460.0,0.00017828,2]
[373908770,1753149048760,-460.0,0.00017828,2]
[373908772,1753149048770,-460.0,0.00017828,2]
[373908775,1753149048780,-460.0,0.00017828,2]
[373908777,1753149048790,-460.0,0.00017828,2]
[373908779,1753149048799,-460.0,0.00017828,2]
[373908781,1753149048809,-463.20550788,0.00017828,2]
[373908783,1753149048819,-460.0,0.00017828,2]
[373908785,1753149048828,-460.0,0.00017828,2]
[373908787,1753149048838,-460.0,0.00017828,2]
[373908789,1753149048849,-463.89840703,0.00017828,2]
[373908790,1753149048858,-460.0,0.00017828,2]
[373908793,1753149048869,-460.0,0.00017828,2]
[373908795,1753149048878,-460.0,0.00017828,2]
[373908797,1753149048888,-460.0,0.00017828,2]
[373908799,1753149048897,-460.0,0.00017828,2]
[373908801,1753149048907,-460.0,0.00017828,2]
[373908803,1753149048916,-460.0,0.00017828,2]
[373908805,1753149048926,-463.73226423,0.00017828,2]
[373908806,1753149048935,-462.30970451,0.00017828,2]
[373908809,1753149048945,-460.0,0.00017828,2]
[373908811,1753149048954,-460.0,0.00017828,2]
[373908813,1753149048964,-460.0,0.00017828,2]
[373908815,1753149048973,-460.0,0.00017828,2]
[373908817,1753149048982,-460.0,0.00017828,2]
[373908819,1753149048992,-460.0,0.00017828,2]
[373908820,1753149049002,-460.0,0.00017828,2]
[373908823,1753149049011,-460.0,0.00017828,2]
[373908825,1753149049021,-460.0,0.00017828,2]
[373908827,1753149049031,-473.06,0.00017828,2]
[373908829,1753149049040,-462.71790469,0.00017828,2]
[373908831,1753149049050,-460.0,0.00017828,2]
[373908833,1753149049059,-596.28,0.00017828,2]
[373908835,1753149049070,-1145.69,0.00017828,2]
[373908837,1753149049080,-460.0,0.00017828,2]
[373908839,1753149049089,-747.45,0.00017828,2]
[373908841,1753149049099,-460.0,0.00017828,2]
[373908843,1753149049109,-462.91700929,0.00017828,2]
[373908845,1753149049119,-460.0,0.00017828,2]
[373908847,1753149049129,-460.0,0.00017828,2]
[373908849,1753149049139,-462.93058331,0.00017828,2]
[373908851,1753149049148,-460.0,0.00017828,2]
[373908853,1753149049158,-460.0,0.00017828,2]
[373908855,1753149049167,-460.0,0.00017828,2]
[373908858,1753149049178,-460.0,0.00017828,2]
[373908859,1753149049187,-551.28,0.00017828,2]
[373908861,1753149049198,-442.66777126,0.00017828,2]
[373908863,1753149049208,-460.0,0.00017828,2]
[373908865,1753149049217,-1052.31,0.00017828,2]
[373908867,1753149049227,-460.0,0.00017828,2]
[373908869,1753149049236,-462.21755874,0.00017828,2]
[373908871,1753149049246,-460.0,0.00017828,2]
[373908873,1753149049260,-461.63834541,0.00017828,2]
[373908875,1753149049269,-460.0,0.00017828,2]
[373908877,1753149049279,-1118.99,0.00017828,2]
[373908879,1753149049289,-460.0,0.00017828,2]
[373908882,1753149049300,-460.0,0.00017828,2]
[373908884,1753149049309,-460.0,0.00017828,2]
[373908886,1753149049318,-460.0,0.00017828,2]
[373908888,1753149049328,-959.83,0.00017828,2]
[373908890,1753149049337,-462.89961993,0.00017828,2]
[373908892,1753149049347,-460.0,0.00017828,2]
[373908894,1753149049357,-1634.35,0.00017828,2]
[373908896,1753149049366,-992.41,0.00017828,2]
[373908898,1753149049375,-460.0,0.00017828,2]
[373908900,1753149049385,-462.01424896,0.00017828,2]
[373908902,1753149049394,-460.0,0.00017828,2]
[373908904,1753149049403,-460.0,0.00017828,2]
[373908906,1753149049412,-279.26852187,0.00017828,2]
[373908908,1753149049422,-460.0,0.00017828,2]
[373908910,1753149049431,-460.0,0.00017828,2]
[373908912,1753149049441,-463.44080033,0.00017828,2]
[373908914,1753149049450,-590.18340738,0.00017828,2]
[373908916,1753149049459,-462.64505105,0.00017828,2]
[373908918,1753149049469,-460.0,0.00017828,2]
[373908920,1753149049478,-460.0,0.00017828,2]
[373908922,1753149049487,-460.56626665,0.00017828,2]
[373908924,1753149049497,-460.0,0.00017828,2]
[373908926,1753149049507,-460.0,0.00017828,2]
[373908928,1753149049517,-576.88,0.00017828,2]
[373908930,1753149049527,-460.0,0.00017828,2]
[373908932,1753149049536,-460.0,0.00017829,2]
[373908934,1753149049545,-460.0,0.00017829,2]
[373908936,1753149049555,-460.0,0.00017829,2]
[373908938,1753149049564,-460.0,0.00017829,2]
[373908940,1753149049573,-460.78236713,0.00017829,2]
[373908942,1753149049582,-461.84306776,0.00017829,2]
[373908944,1753149049593,-461.37589261,0.00017829,2]
[373908946,1753149049604,-463.13601365,0.00017829,2]
[373908948,1753149049613,-460.89059097,0.00017829,2]
[373908950,1753149049622,-993.22,0.00017829,2]
[373908952,1753149049632,-940.17,0.00017829,2]
[373908954,1753149049643,-460.0,0.00017829,2]
[373908956,1753149049660,-460.0,0.00017829,2]
[373908958,1753149049669,-809.11,0.00017829,2]
[373908960,1753149049681,-648.06,0.00017829,2]
[373908962,1753149049693,-1001.71,0.00017829,2]
[373908965,1753149049704,-989.78,0.00017829,2]
[373908967,1753149049713,-366.0,0.00017844,2]
[373908969,1753149049722,-781.07,0.00017876,2]
[373908971,1753149049732,-781.07,0.00017876,2]
[373908973,1753149049741,-215.0738,0.00017877,2]
[373908975,1753149049751,-7170.97175103,0.000179,2]
[373908977,1753149049760,-462.32096043,0.00017928,2]
[373908979,1753149049770,-460.0,0.00017928,2]
[373908981,1753149049781,-460.0,0.00017928,2]
[373908983,1753149049802,-461.68435102,0.00017928,2]
[373908985,1753149049812,-460.0,0.00017928,2]
[373908987,1753149049821,-460.0,0.00017928,2]
[373908989,1753149049831,-460.0,0.00017928,2]
[373908991,1753149049841,-460.0,0.00017928,2]
[373908993,1753149049850,-464.42183289,0.00017928,2]
[373908995,1753149049860,-460.0,0.00017928,2]
[373908997,1753149049869,-222.00188399,0.00017928,2]
[373908999,1753149049878,-462.52390713,0.00017928,2]
[373909001,1753149049887,-460.0,0.00017928,2]
[373909003,1753149049896,-462.53815913,0.00017928,2]
[373909005,1753149049905,-461.86245799,0.00017928,2]
[373909007,1753149049915,-200.88734917,0.00017928,2]
[373909009,1753149049924,-463.14246143,0.00017928,2]
[373909011,1753149049934,-460.0,0.00017928,2]
[373909013,1753149049943,-462.58997347,0.00017928,2]
[373909015,1753149049953,-243.9599499,0.00017928,2]
[373909017,1753149049962,-460.0,0.00017928,2]
[373909019,1753149049971,-463.28705658,0.00017928,2]
[373909021,1753149049982,-462.27660256,0.00017928,2]
[373909023,1753149049991,-465.62970904,0.00017928,2]
[373909025,1753149050000,-460.0,0.00017928,2]
[373909027,1753149050009,-460.0,0.00017928,2]
[373909029,1753149050018,-509.02346839,0.00017928,2]
[373909031,1753149050027,-463.1580656,0.00017928,2]
[373909033,1753149050037,-468.48832167,0.00017928,2]
[373909035,1753149050046,-460.0,0.00017928,2]
[373909037,1753149050055,-460.0,0.00017928,2]
[373909039,1753149050065,-460.0,0.00017928,2]
[373909041,1753149050074,-460.0,0.00017928,2]
[373909043,1753149050084,-460.0,0.00017928,2]
[373909045,1753149050093,-460.0,0.00017928,2]
[373909047,1753149050102,-463.89407436,0.00017928,2]
[373909049,1753149050111,-460.0,0.00017928,2]
[373909051,1753149050120,-540.21458139,0.00017928,2]
[373909053,1753149050130,-1043.95,0.00017928,2]
[373909055,1753149050139,-877.18,0.00017928,2]
[373909057,1753149050149,-498.95,0.00017928,2]
[373909059,1753149050157,-478.86,0.00017928,2]
[373909061,1753149050167,-460.0,0.00017928,2]
[373909063,1753149050176,-460.0,0.00017928,2]
[373909065,1753149050185,-414.69513162,0.00017928,2]
[373909067,1753149050194,-460.0,0.00017928,2]
[373909069,1753149050203,-460.0,0.00017928,2]
[373909071,1753149050212,-464.86382537,0.00017928,2]
[373909073,1753149050221,-460.0,0.00017928,2]
[373909075,1753149050231,-462.65078916,0.00017928,2]
[373909077,1753149050239,-460.0,0.00017928,2]
[373909079,1753149050250,-1076.13,0.00017928,2]
[373909081,1753149050259,-209.10272163,0.00017928,2]
[373909083,1753149050268,-463.90456345,0.00017928,2]
[373909085,1753149050278,-460.0,0.00017928,2]
[373909087,1753149050287,-463.89688741,0.00017928,2]
[373909089,1753149050296,-460.0,0.00017928,2]
[373909091,1753149050305,-497.44205027,0.00017928,2]
[373909093,1753149050315,-460.0,0.00017928,2]
[373909095,1753149050324,-600.90842516,0.00017928,2]
[373909097,1753149050333,-460.0,0.00017928,2]
[373909099,1753149050343,-460.0,0.00017928,2]
[373909101,1753149050352,-461.81498417,0.00017928,2]
[373909103,1753149050362,-460.0,0.00017928,2]
[373909105,1753149050371,-470.67189913,0.00017928,2]
[373909107,1753149050380,-460.0,0.00017928,2]
[373909109,1753149050390,-460.0,0.00017928,2]
[373909111,1753149050399,-460.0,0.00017928,2]
[373909113,1753149050408,-463.78529397,0.00017928,2]
[373909115,1753149050417,-575.45558726,0.00017928,2]
[373909117,1753149050427,-545.13,0.00017928,2]
[373909119,1753149050436,-502.76023036,0.00017928,2]
[373909121,1753149050445,-460.0,0.00017928,2]
[373909123,1753149050454,-462.69952096,0.00017928,2]
[373909125,1753149050463,-461.50610712,0.00017928,2]
[373909127,1753149050472,-460.0,0.00017928,2]
[373909129,1753149050481,-464.75774092,0.00017928,2]
[373909131,1753149050491,-462.44944515,0.00017928,2]
[373909133,1753149050500,-237.06876321,0.00017928,2]
[373909135,1753149050509,-460.0,0.00017928,2]
[373909136,1753149050518,-512.20512851,0.00017928,2]
[373909139,1753149050528,-461.52278892,0.00017928,2]
[373909140,1753149050537,-460.0,0.00017928,2]
[373909142,1753149050546,-460.0,0.00017928,2]
[373909144,1753149050556,-461.16064286,0.00017928,2]
[373909146,1753149050566,-460.0,0.00017928,2]
[373909148,1753149050575,-460.0,0.00017928,2]
[373909150,1753149050584,-460.0,0.00017928,2]
[373909152,1753149050594,-468.98557229,0.00017928,2]
[373909154,1753149050606,-460.0,0.00017928,2]
[373909156,1753149050616,-460.0,0.00017928,2]
[373909158,1753149050625,-460.0,0.00017928,2]
[373909160,1753149050634,-462.85233346,0.00017928,2]
[373909162,1753149050645,-1024.22295918,0.00017928,2]
[373909189,1753149050906,202.39091256,0.000167,2]
[373910408,1753149269911,215.39604633,0.000167,2]
[373910411,1753149358451,5448.2402113,0.00016471,2]
[373910413,1753149505798,616.51352779,0.00016603,2]
[373910414,1753149505831,402.19713891,0.00016603,2]
[373910415,1753149610380,239.41776,0.0002277,31]
[373910416,1753149681177,282.993199,0.00016394,2]
[373910419,1753149818507,9314.80966209,0.0001675,2]
[373910420,1753149818537,685.19033791,0.0001675,2]
[373910421,1753149843844,9314.80966209,0.0001675,2]
[373910422,1753149843875,685.19033791,0.0001675,2]
[373910423,1753149870126,215.752321,0.00013699,2]
[373910425,1753149876649,9099.05734109,0.0001675,2]
[373910426,1753149876691,900.94265891,0.0001675,2]
[373910427,1753149898304,5000.0,0.0001675,2]
[373910428,1753149915132,3978.5547967,0.0001675,2]
[373910429,1753149927422,120.50254439,0.00016369,2]
[373910430,1753149927452,10000.0,0.00016369,2]
[373910431,1753149927488,10000.0,0.00016369,2]
[373910432,1753149927519,4779.49745561,0.00016369,2]
[373910433,1753149941090,-154.62392441,0.00016846,2]
[373910434,1753149941111,-572.65036627,0.00016846,2]
[373910435,1753149941131,-171.15516988,0.00016946,2]
[373910436,1753149941152,-154.62392441,0.00017058,2]
[373910437,1753149941176,-154.62392441,0.0001727,2]
[373910438,1753149941197,-541.09200564,0.000173,2]
[373910439,1753149941217,-300.0,0.00017368,2]
[373910440,1753149941238,-300.0,0.00017368,2]
[373910441,1753149941258,-300.0,0.00017368,2]
[373910442,1753149941280,-840.40966121,0.00017368,2]
[373910447,1753150208063,231.437168,0.0002277,31]
[373910483,1753150232223,-151.102815,0.00016815,2]
[373910485,1753150232233,-1482.06050946,0.00017268,2]
[373910487,1753150232244,-370.7124013,0.000173,2]
[373910489,1753150232253,-1200.0,0.00017334,2]
[373910491,1753150232263,-8558.12427424,0.00017335,2]
[373910493,1753150232276,-339.75928077,0.00017335,2]
[373910494,1753150232286,-300.0,0.00017359,2]
[373910495,1753150232295,-300.0,0.00017359,2]
[373910496,1753150232304,-300.0,0.00017359,2]
[373910497,1753150232318,-1512.07,0.0001736,3]
[373910498,1753150232328,-756.03,0.0001736,3]
[373910499,1753150232337,-362.35816697,0.0001736,3]
[373910500,1753150232350,-15.66183303,0.0001736,3]
[373910501,1753150232360,-189.01,0.0001736,3]
[373910502,1753150232369,-567.04,0.0001736,3]
[373910503,1753150232378,-1200.0,0.00017367,2]
[373910504,1753150232388,-460.95462648,0.00017367,2]
[373910505,1753150232397,-462.59160284,0.00017367,2]
[373910506,1753150232407,-467.83535749,0.00017367,2]
[373910508,1753150232417,-467.59043603,0.00017367,2]
[373910510,1753150232427,-463.2740059,0.00017367,2]
[373910512,1753150232437,-462.31852958,0.00017367,2]
[373910514,1753150232446,-460.0,0.00017367,2]
[373910516,1753150232455,-460.0,0.00017367,2]
[373910518,1753150232465,-443.25031025,0.00017367,2]
[373910520,1753150232475,-460.0,0.00017367,2]
[373910522,1753150232484,-462.87931912,0.00017367,2]
[373910524,1753150232494,-462.28012055,0.00017367,2]
[373910526,1753150232503,-461.70143363,0.00017367,2]
[373910528,1753150232513,-461.09100521,0.00017367,2]
[373910530,1753150232522,-461.8257664,0.00017367,2]
[373910532,1753150232532,-648.31,0.00017367,2]
[373910534,1753150232541,-776.51,0.00017367,2]
[373910536,1753150232551,-2468.78,0.00017367,2]
[373910538,1753150232563,-464.19934418,0.00017367,2]
[373910540,1753150232573,-462.11221123,0.00017367,2]
[373910542,1753150232582,-463.91774386,0.00017367,2]
[373910544,1753150232591,-422.01284583,0.00017367,2]
[373910546,1753150232601,-460.0,0.00017367,2]
[373910548,1753150232610,-460.0,0.00017367,2]
[373910550,1753150232619,-462.9330622,0.00017367,2]
[373910552,1753150232629,-463.47142927,0.00017367,2]
[373910554,1753150232639,-460.0,0.00017367,2]
[373910556,1753150232648,-465.14273292,0.00017367,2]
[373910558,1753150232658,-50000.0,0.00017367,2]
[373910560,1753150232667,-460.0,0.00017368,2]
[373910562,1753150232677,-460.0,0.00017368,2]
[373910564,1753150232686,-460.0,0.00017368,2]
[373910566,1753150232695,-460.0,0.00017368,2]
[373910568,1753150232705,-462.4620737,0.00017368,2]
[373910570,1753150232714,-461.20432561,0.00017368,2]
[373910572,1753150232724,-262.91907297,0.00017368,2]
[373910574,1753150232733,-460.0,0.00017368,2]
[373910575,1753150232743,-460.0,0.00017368,2]
[373910576,1753150232753,-460.76656187,0.00017368,2]
[373910577,1753150232762,-470.8706662,0.00017368,2]
[373910578,1753150232771,-463.7885405,0.00017368,2]
[373910579,1753150232781,-462.2447876,0.00017368,2]
[373910580,1753150232790,-327.16650141,0.00017368,2]
[373910581,1753150232799,-461.38750695,0.00017368,2]
[373910582,1753150232809,-460.0,0.00017368,2]
[373910583,1753150232818,-460.86038786,0.00017369,2]
[373910584,1753150232827,-595.27859935,0.00017369,2]
[373910585,1753150232837,-460.0,0.00017369,2]
[373910586,1753150232847,-572.34152289,0.00017369,2]
[373910587,1753150232857,-460.4404546,0.00017369,2]
[373910588,1753150232866,-460.9844636,0.00017369,2]
[373910589,1753150232877,-460.0,0.00017369,2]
[373910590,1753150232886,-460.0,0.00017369,2]
[373910591,1753150232895,-460.0,0.00017369,2]
[373910592,1753150232904,-460.0,0.00017369,2]
[373910593,1753150232914,-460.0,0.00017369,2]
[373910594,1753150232923,-1000.0,0.00017369,2]
[373910595,1753150232933,-460.0,0.00017369,2]
[373910596,1753150232943,-460.0,0.00017369,2]
[373910597,1753150232952,-460.0,0.00017369,2]
[373910598,1753150232962,-460.0,0.00017369,2]
[373910599,1753150232972,-462.0733241,0.00017369,2]
[373910600,1753150232981,-156.693,0.00017369,2]
[373910601,1753150232991,-460.0,0.00017369,2]
[373910602,1753150233001,-4546.61,0.00017369,2]
[373910603,1753150233010,-1242.49,0.00017369,2]
[373910604,1753150233020,-826.13,0.00017369,2]